bitfinex/quotes_BTCUSD_20260125
["timestamp","ask_amount","ask_price","bid_price","bid_amount"]
[1769304293507,0.0405096,89216.0,89210.0,0.21915955]
[1769304293647,0.03,89214.0,89210.0,0.21915955]
[1769304293829,0.03,89212.0,89210.0,0.21915955]
[1769304294028,0.03780384,89211.0,89210.0,0.21915955]
[1769304298876,0.03780384,89211.0,89207.0,0.23687804]
[1769304299153,0.03,89216.0,89208.0,0.21915955]
[1769304300003,0.03,89215.0,89208.0,0.21915955]
[1769304301007,6.395e-05,89218.0,89208.0,0.21915955]
[1769304301759,0.03006395,89218.0,89208.0,0.21915955]
[1769304303577,0.03,89217.0,89208.0,0.21915955]
[1769304304352,0.03,89217.0,89211.0,0.22572861]
[1769304304575,6.395e-05,89218.0,89215.0,0.22572861]
[1769304304777,6.395e-05,89218.0,89216.0,0.22379837]
[1769304305090,6.395e-05,89218.0,89216.0,0.20052266]
[1769304305324,6.395e-05,89218.0,89216.0,0.19473028]
[1769304305477,0.08973554,89225.0,89216.0,0.20781942]
[1769304305675,0.0001497,89227.0,89217.0,0.22379721]
[1769304305877,0.03362819,89227.0,89217.0,0.22283101]
[1769304306084,0.0105191,89226.0,89217.0,0.22283101]
[1769304306393,0.0105191,89225.0,89217.0,0.20936443]
[1769304306559,0.03,89223.0,89217.0,0.20936443]
[1769304306762,0.03,89221.0,89219.0,0.22572861]
[1769304307072,0.0405191,89220.0,89219.0,0.19820175]
[1769304308335,0.0405191,89220.0,89219.0,0.18443495]
[1769304308496,0.04051626,89220.0,89219.0,0.16317576]
[1769304308695,0.03,89227.0,89219.0,0.16317576]
[1769304308903,0.01094148,89226.0,89219.0,0.16317576]
[1769304309118,0.02214884,89227.0,89219.0,0.16317576]
[1769304309323,0.01094148,89227.0,89219.0,0.16317576]
[1769304309532,0.03,89227.0,89214.0,0.22572861]
[1769304309730,0.03,89225.0,89214.0,0.22572861]
[1769304309931,0.03,89223.0,89214.0,0.22572861]
[1769304310132,0.03362819,89228.0,89214.0,0.22572861]
[1769304310133,0.03,89221.0,89214.0,0.22572861]
[1769304310736,0.03,89221.0,89215.0,0.00882641]
[1769304310918,0.03,89221.0,89215.0,0.23455502]
[1769304311119,0.03,89221.0,89215.0,0.22572861]
[1769304311330,0.03,89220.0,89215.0,0.22572861]
[1769304311529,0.03,89220.0,89215.0,0.20975069]
[1769304311740,0.03,89220.0,89216.0,0.22572861]
[1769304312580,0.03,89227.0,89216.0,0.22572861]
[1769304316053,0.03,89227.0,89217.0,0.00886918]
[1769304316252,0.03,89227.0,89217.0,0.21721019]
[1769304317594,0.14208164,89227.0,89217.0,0.21721019]
[1769304318997,0.14208164,89227.0,89217.0,0.24167662]
[1769304319185,0.14208164,89227.0,89218.0,0.20375303]
[1769304320312,0.11208164,89227.0,89218.0,0.21278505]
[1769304320509,0.03362819,89228.0,89218.0,0.21278505]
[1769304320813,0.02003632,89228.0,89218.0,0.21278505]
[1769304321018,0.01120686,89231.0,89218.0,0.21278505]
[1769304321213,0.06362793,89230.0,89218.0,0.21278505]
[1769304321433,0.02621007,89230.0,89218.0,0.21278505]
[1769304321896,0.31435002,89230.0,89218.0,0.21278505]
[1769304324327,0.32555701,89230.0,89218.0,0.21278505]
[1769304325093,0.31435002,89230.0,89218.0,0.21278505]
[1769304325346,0.32555701,89230.0,89218.0,0.21278505]
[1769304325513,0.31435002,89230.0,89218.0,0.21278505]
[1769304325909,0.32555701,89230.0,89218.0,0.21278505]
[1769304326298,0.38159211,89230.0,89218.0,0.21278505]
[1769304326633,0.32555701,89230.0,89218.0,0.21278505]
[1769304326792,0.31435002,89230.0,89218.0,0.21278505]
[1769304327013,0.32555701,89230.0,89218.0,0.21278505]
[1769304327415,0.29934694,89230.0,89218.0,0.21278505]
[1769304327851,0.03,89228.0,89218.0,0.21278505]
[1769304332770,0.03,89226.0,89218.0,0.21278505]
[1769304332970,0.03,89224.0,89218.0,0.21278505]
[1769304333194,0.03,89222.0,89218.0,0.21278505]
[1769304333407,0.03,89220.0,89218.0,0.21278505]
[1769304333616,0.03051081,89219.0,89218.0,0.21278505]
[1769304334268,0.03051081,89219.0,89218.0,0.20549141]
[1769304335062,0.03051081,89219.0,89218.0,0.19645939]
[1769304337520,0.03051081,89219.0,89218.0,0.20604888]
[1769304337866,0.03,89227.0,89218.0,0.19645939]
[1769304340186,0.03,89225.0,89218.0,0.19551893]
[1769304340828,0.03,89223.0,89218.0,0.11061234]
[1769304341119,0.03,89221.0,89218.0,0.11061234]
[1769304341909,0.03,89224.0,89218.0,0.11061234]
[1769304343023,0.11215967,89228.0,89218.0,0.11061234]
[1769304343024,0.03,89222.0,89218.0,0.11061234]
[1769304343828,0.03,89220.0,89218.0,0.11061234]
[1769304344673,0.03,89220.0,89216.0,0.21609985]
[1769304344988,0.03,89225.0,89216.0,0.21609985]
[1769304345183,0.03,89223.0,89216.0,0.21609985]
[1769304345389,0.03,89221.0,89216.0,0.21609985]
[1769304345749,0.12310115,89223.0,89216.0,0.21609985]
[1769304345953,0.01094148,89223.0,89216.0,0.21609985]
[1769304346148,0.01094148,89226.0,89216.0,0.21609985]
[1769304346353,0.03,89225.0,89216.0,0.21609985]
[1769304346553,0.03,89223.0,89216.0,0.21609985]
[1769304346760,0.03,89221.0,89216.0,0.21609985]
[1769304347810,0.01094148,89222.0,89217.0,0.21469325]
[1769304348034,0.01,89222.0,89219.0,0.21469325]
[1769304348309,0.01,89222.0,89213.0,0.21469325]
[1769304348522,0.01,89222.0,89214.0,0.21709873]
[1769304348928,0.03,89221.0,89214.0,0.21709873]
[1769304349678,0.03,89219.0,89214.0,0.22528183]
[1769304349914,0.03,89217.0,89215.0,0.20651015]
[1769304350116,0.04051913,89216.0,89215.0,0.20651015]
[1769304350478,0.0405191,89216.0,89215.0,0.20651015]
[1769304351955,0.08603832,89225.0,89215.0,0.20651015]
[1769304352148,0.04120762,89225.0,89216.0,0.01879581]
[1769304352751,0.03,89225.0,89216.0,0.01879581]
[1769304352896,0.04120762,89225.0,89216.0,0.01879581]
[1769304353532,0.03,89225.0,89216.0,0.01879581]
[1769304354035,0.03,89224.0,89216.0,0.01879581]
[1769304355051,0.03,89223.0,89216.0,0.01879581]
[1769304356058,0.03,89222.0,89216.0,0.01879581]
[1769304357191,0.01120762,89225.0,89216.0,0.01879581]
[1769304357192,0.03,89221.0,89216.0,0.01879581]
[1769304357795,0.0672466,89224.0,89216.0,0.01879581]
[1769304358118,0.01120762,89225.0,89216.0,0.01879581]
[1769304358337,0.03,89224.0,89216.0,0.01879581]
[1769304359398,0.03,89225.0,89216.0,0.01879581]
[1769304360491,0.03,89224.0,89216.0,0.01879581]
[1769304360702,0.04120824,89220.0,89211.0,0.03362793]
[1769304360929,0.03,89220.0,89208.0,0.20651015]
[1769304361055,0.03,89220.0,89208.0,0.2065741]
[1769304361270,0.01120799,89222.0,89209.0,0.03362793]
[1769304361674,0.04120812,89221.0,89209.0,0.03362793]
[1769304361907,0.06724799,89222.0,89209.0,0.03362793]
[1769304362110,0.03945576,89222.0,89209.0,0.03362793]
[1769304362310,0.02621963,89222.0,89209.0,0.03362793]
[1769304362510,0.06724759,89223.0,89209.0,0.03362793]
[1769304362749,0.03,89221.0,89209.0,0.03362793]
[1769304362902,0.01120812,89221.0,89209.0,0.03362793]
[1769304363129,0.28813995,89230.0,89203.0,0.04273887]
[1769304363130,0.0112095,89210.0,89203.0,0.04273887]
[1769304363340,0.0112095,89210.0,89191.0,0.20847199]
[1769304363341,0.20893922,89208.0,89191.0,0.20847199]
[1769304363565,0.0001119,89208.0,89193.0,0.01120812]
[1769304363768,0.03,89206.0,89191.0,0.20847199]
[1769304363964,0.03,89204.0,89191.0,0.24210508]
[1769304364350,0.03,89202.0,89191.0,0.24210508]
[1769304364991,0.03,89202.0,89191.0,0.20847199]
[1769304365406,0.0001119,89208.0,89191.0,0.20847199]
[1769304365552,0.01051225,89207.0,89191.0,0.20847199]
[1769304365752,0.01051225,89206.0,89191.0,0.20847199]
[1769304365962,0.01051225,89205.0,89191.0,0.20847199]
[1769304366158,0.01051225,89204.0,89191.0,0.20847199]
[1769304366332,0.03,89202.0,89191.0,0.20847199]
[1769304367348,0.0301119,89208.0,89191.0,0.20847199]
[1769304367595,0.00511552,89207.0,89191.0,0.20847199]
[1769304367797,0.0001119,89208.0,89191.0,0.20847199]
[1769304368396,0.01132165,89208.0,89191.0,0.20847199]
[1769304368661,0.0001119,89208.0,89191.0,0.20847199]
[1769304368862,0.0301119,89208.0,89191.0,0.20847199]
[1769304370327,0.03,89206.0,89191.0,0.20847199]
[1769304370533,0.03,89204.0,89191.0,0.20847199]
[1769304371529,0.03,89203.0,89191.0,0.20847199]
[1769304372566,0.03,89202.0,89191.0,0.20847199]
[1769304373508,0.03,89201.0,89191.0,0.20847199]
[1769304374507,0.03,89205.0,89191.0,0.20847199]
[1769304375584,0.04121,89206.0,89191.0,0.20847199]
[1769304375778,0.03,89206.0,89191.0,0.20847199]
[1769304376210,0.04121,89206.0,89191.0,0.20847199]
[1769304376383,0.03,89206.0,89191.0,0.20847199]
[1769304377031,0.04121,89206.0,89191.0,0.20847199]
[1769304379409,0.03,89204.0,89191.0,0.20847199]
[1769304379602,0.03,89202.0,89191.0,0.20847199]
[1769304380756,0.03,89205.0,89191.0,0.20847199]
[1769304380963,0.01121,89206.0,89191.0,0.20847199]
[1769304380964,0.03,89203.0,89191.0,0.20847199]
[1769304381892,0.03,89202.0,89191.0,0.20847199]
[1769304383055,0.03,89205.0,89191.0,0.20847199]
[1769304383220,0.03,89203.0,89191.0,0.20847199]
[1769304384174,0.03,89202.0,89191.0,0.20847199]
[1769304385225,0.03,89205.0,89191.0,0.20847199]
[1769304385429,0.03,89201.0,89191.0,0.20847199]
[1769304385632,0.25102525,89201.0,89191.0,0.20847199]
[1769304385888,0.03,89201.0,89191.0,0.20847199]
[1769304386447,0.03,89200.0,89191.0,0.20847199]
[1769304387496,0.03,89199.0,89191.0,0.20847199]
[1769304388522,0.03,89198.0,89191.0,0.20847199]
[1769304389498,0.01121051,89202.0,89191.0,0.20847199]
[1769304389634,0.01051168,89201.0,89191.0,0.20847199]
[1769304389837,0.01051168,89200.0,89191.0,0.20847199]
[1769304390057,0.06726268,89203.0,89191.0,0.20847199]
[1769304390270,0.01051168,89202.0,89191.0,0.20847199]
[1769304390465,0.01051168,89201.0,89191.0,0.20847199]
[1769304390706,0.01051168,89200.0,89191.0,0.20847199]
[1769304390908,0.06726268,89203.0,89191.0,0.20847199]
[1769304391131,0.03363351,89205.0,89191.0,0.20847199]
[1769304391132,0.01051166,89202.0,89191.0,0.20847199]
[1769304391326,0.01051166,89201.0,89191.0,0.20847199]
[1769304391525,0.01051166,89200.0,89191.0,0.20847199]
[1769304391727,0.03363351,89205.0,89191.0,0.20847199]
[1769304391885,0.01051308,89204.0,89191.0,0.20847199]
[1769304392123,0.01051308,89203.0,89191.0,0.20847199]
[1769304392311,0.01051308,89202.0,89191.0,0.20847199]
[1769304392513,0.01051308,89201.0,89191.0,0.20847199]
[1769304392757,0.01051308,89200.0,89191.0,0.20847199]
[1769304393074,0.01051308,89199.0,89191.0,0.20847199]
[1769304393208,0.03363351,89205.0,89191.0,0.20847199]
[1769304393419,0.01051584,89204.0,89191.0,0.20847199]
[1769304393650,0.01051584,89203.0,89191.0,0.20847199]
[1769304393847,0.01051584,89202.0,89191.0,0.20847199]
[1769304394046,0.01051584,89201.0,89191.0,0.20847199]
[1769304394276,0.01051584,89200.0,89191.0,0.20847199]
[1769304394481,0.01051584,89199.0,89191.0,0.20847199]
[1769304394719,0.03363351,89205.0,89191.0,0.20847199]
[1769304394929,0.0105157,89204.0,89191.0,0.20847199]
[1769304395146,0.0105157,89203.0,89191.0,0.20847199]
[1769304395351,0.0105157,89202.0,89191.0,0.20847199]
[1769304395498,0.0105157,89201.0,89191.0,0.20847199]
[1769304395701,0.0105157,89200.0,89191.0,0.20847199]
[1769304395904,0.03363351,89205.0,89191.0,0.20847199]
[1769304395905,0.0105157,89199.0,89191.0,0.20847199]
[1769304396110,0.03363351,89205.0,89191.0,0.20847199]
[1769304396317,0.01051558,89204.0,89191.0,0.20847199]
[1769304396515,0.01051558,89203.0,89191.0,0.20847199]
[1769304396719,0.01051558,89202.0,89191.0,0.20847199]
[1769304396920,0.01051558,89201.0,89191.0,0.20847199]
[1769304397124,0.01051558,89200.0,89191.0,0.20847199]
[1769304397327,0.01051558,89199.0,89191.0,0.20847199]
[1769304397528,0.03363351,89205.0,89191.0,0.20847199]
[1769304397734,0.01051544,89204.0,89191.0,0.20847199]
[1769304397945,0.01051544,89203.0,89191.0,0.20847199]
[1769304398139,0.01051544,89202.0,89191.0,0.20847199]
[1769304398344,0.01051544,89201.0,89191.0,0.20847199]
[1769304398701,0.01051544,89200.0,89191.0,0.20847199]
[1769304398925,0.01051544,89199.0,89191.0,0.20847199]
[1769304399134,0.01121025,89204.0,89191.0,0.20847199]
[1769304399342,0.01051551,89203.0,89191.0,0.20847199]
[1769304399555,0.01051551,89202.0,89191.0,0.20847199]
[1769304399770,0.03,89200.0,89191.0,0.20847199]
[1769304399972,0.03,89198.0,89191.0,0.20847199]
[1769304400946,0.03363351,89205.0,89191.0,0.20847199]
[1769304401201,0.01051572,89204.0,89191.0,0.20847199]
[1769304401487,0.01051572,89203.0,89191.0,0.20847199]
[1769304401658,0.01051572,89202.0,89191.0,0.20847199]
[1769304401869,0.01051572,89201.0,89191.0,0.20847199]
[1769304402065,0.01051572,89200.0,89191.0,0.20847199]
[1769304402271,0.01051572,89199.0,89191.0,0.20847199]
[1769304402456,0.04484364,89205.0,89191.0,0.20847199]
[1769304402656,0.01051603,89204.0,89191.0,0.20847199]
[1769304402868,0.01051603,89203.0,89191.0,0.20847199]
[1769304403087,0.04484364,89205.0,89191.0,0.20847199]
[1769304403088,0.01051603,89202.0,89191.0,0.20847199]
[1769304403300,0.01051603,89201.0,89191.0,0.20847199]
[1769304403599,0.01051624,89200.0,89191.0,0.20847199]
[1769304403915,0.01051624,89199.0,89191.0,0.20847199]
[1769304404110,0.03363351,89205.0,89191.0,0.20847199]
[1769304404340,0.01051624,89204.0,89191.0,0.20847199]
[1769304404539,0.01051624,89203.0,89191.0,0.20847199]
[1769304404724,0.01051624,89202.0,89191.0,0.20847199]
[1769304404900,0.01051624,89201.0,89191.0,0.20847199]
[1769304405209,0.01051624,89200.0,89191.0,0.20847199]
[1769304405388,0.01051624,89199.0,89191.0,0.20847199]
[1769304405584,0.04484364,89205.0,89191.0,0.20847199]
[1769304405782,0.01051682,89204.0,89191.0,0.20847199]
[1769304405989,0.01051682,89203.0,89191.0,0.20847199]
[1769304406188,0.01051682,89202.0,89191.0,0.20847199]
[1769304406393,0.01051682,89201.0,89191.0,0.20847199]
[1769304406595,0.01051682,89200.0,89191.0,0.20847199]
[1769304406823,0.03363351,89205.0,89191.0,0.20847199]
[1769304406824,0.01051682,89199.0,89191.0,0.20847199]
[1769304407020,0.03363351,89205.0,89193.0,0.22953225]
[1769304407240,0.01051723,89204.0,89193.0,0.22953225]
[1769304407421,0.01051723,89203.0,89193.0,0.22953225]
[1769304407629,0.01051723,89202.0,89193.0,0.22953225]
[1769304407841,0.01051723,89201.0,89193.0,0.22953225]
[1769304408042,0.01051723,89200.0,89193.0,0.22953225]
[1769304408205,0.01051723,89199.0,89193.0,0.22953225]
[1769304408402,0.01051723,89198.0,89193.0,0.22953225]
[1769304408620,0.04484364,89205.0,89193.0,0.22953225]
[1769304408824,0.01051847,89204.0,89193.0,0.22953225]
[1769304409025,0.01051847,89203.0,89193.0,0.22953225]
[1769304409301,0.01051847,89202.0,89193.0,0.22953225]
[1769304409497,0.01051847,89201.0,89193.0,0.22953225]
[1769304409776,0.01051847,89200.0,89193.0,0.22953225]
[1769304409980,0.01051847,89199.0,89193.0,0.22953225]
[1769304410195,0.01051847,89198.0,89193.0,0.22953225]
[1769304410378,0.04484364,89205.0,89193.0,0.22953225]
[1769304410572,0.01051883,89204.0,89193.0,0.22953225]
[1769304410777,0.01051883,89203.0,89193.0,0.22953225]
[1769304410978,0.04484364,89205.0,89193.0,0.22953225]
[1769304410979,0.03,89201.0,89193.0,0.22953225]
[1769304411142,0.03,89199.0,89193.0,0.22953225]
[1769304411494,0.01051883,89198.0,89190.0,0.2882812]
[1769304411673,0.06725947,89207.0,89196.0,0.22968195]
[1769304411881,0.02172898,89206.0,89196.0,0.22428904]
[1769304412058,0.01051898,89205.0,89196.0,0.21888819]
[1769304412273,0.01051898,89204.0,89196.0,0.20348734]
[1769304412449,0.01051898,89203.0,89196.0,0.20348734]
[1769304412650,0.01120988,89207.0,89196.0,0.20348734]
[1769304412651,0.01051898,89202.0,89196.0,0.20348734]
[1769304412853,0.01051898,89201.0,89196.0,0.20348734]
[1769304413069,0.01051898,89200.0,89190.0,0.2882812]
[1769304413305,0.01051898,89199.0,89190.0,0.2882812]
[1769304413485,0.01051898,89198.0,89190.0,0.2882812]
[1769304413681,0.06726019,89206.0,89190.0,0.2882812]
[1769304413902,0.02172951,89205.0,89190.0,0.2882812]
[1769304414087,0.01051938,89204.0,89190.0,0.2882812]
[1769304414285,0.02172976,89203.0,89188.0,0.26316576]
[1769304414455,0.01051938,89202.0,89188.0,0.26316576]
[1769304414654,0.01051938,89201.0,89188.0,0.26316576]
[1769304414881,0.01051938,89200.0,89188.0,0.26316576]
[1769304415091,0.01051938,89199.0,89188.0,0.26316576]
[1769304415304,0.01051938,89198.0,89188.0,0.26316576]
[1769304415504,0.01051938,89197.0,89188.0,0.26316576]
[1769304415700,0.01121038,89203.0,89188.0,0.26316576]
[1769304415904,0.01051999,89202.0,89188.0,0.26316576]
[1769304416101,0.01051999,89201.0,89188.0,0.47058423]
[1769304416310,0.01051999,89200.0,89189.0,0.20741847]
[1769304416674,0.01051999,89199.0,89189.0,0.20741847]
[1769304416878,0.01051999,89198.0,89189.0,0.20741847]
[1769304417083,0.29196949,89207.0,89189.0,0.20741847]
[1769304417286,0.02172473,89206.0,89189.0,0.43695072]
[1769304417495,0.01051473,89205.0,89189.0,0.22953225]
[1769304417707,0.01051473,89204.0,89190.0,0.43695072]
[1769304417891,0.01051473,89203.0,89190.0,0.43695072]
[1769304418113,0.01051473,89202.0,89190.0,0.43695072]
[1769304418318,0.01051473,89201.0,89190.0,0.43695072]
[1769304418454,0.01051473,89200.0,89190.0,0.43695072]
[1769304418667,0.01051473,89199.0,89191.0,0.22953225]
[1769304418869,0.01051473,89198.0,89191.0,0.22953225]
[1769304419066,0.23591969,89207.0,89191.0,0.22953225]
[1769304419261,0.02172477,89206.0,89191.0,0.22953225]
[1769304419487,0.07777578,89205.0,89191.0,0.22953225]
[1769304419806,0.01051477,89204.0,89191.0,0.22953225]
[1769304420060,0.01051477,89203.0,89191.0,0.22953225]
[1769304420188,0.01051477,89202.0,89191.0,0.22953225]
[1769304420560,0.01051477,89201.0,89191.0,0.22953225]
[1769304420830,0.01051477,89200.0,89191.0,0.22953225]
[1769304421056,0.01051477,89199.0,89191.0,0.22953225]
[1769304421213,0.01051477,89198.0,89191.0,0.22953225]
[1769304421413,0.03,89197.0,89191.0,0.22953225]
[1769304422395,0.03,89196.0,89191.0,0.22953225]
[1769304422824,0.03,89196.0,89187.0,0.0001497]
[1769304423511,0.03,89195.0,89187.0,0.0001497]
[1769304423659,0.03,89193.0,89187.0,0.0001497]
[1769304424858,0.03,89199.0,89187.0,0.0001497]
[1769304425183,0.03,89197.0,89187.0,0.0001497]
[1769304425410,0.03,89195.0,89187.0,0.0001497]
[1769304426065,0.21925344,89200.0,89187.0,0.0001497]
[1769304426066,0.01410029,89200.0,89187.0,0.0001497]
[1769304426247,0.01051411,89199.0,89187.0,0.0001497]
[1769304426451,0.04051411,89198.0,89187.0,0.0001497]
[1769304426651,0.03,89196.0,89187.0,0.0001497]
[1769304426874,0.03,89194.0,89187.0,0.0001497]
[1769304427844,0.03,89193.0,89187.0,0.0001497]
[1769304428004,0.03,89193.0,89187.0,0.00749018]
[1769304428616,0.10089781,89205.0,89187.0,0.00749018]
[1769304428821,0.03,89203.0,89187.0,0.0001497]
[1769304429024,0.03,89201.0,89187.0,0.0001497]
[1769304429248,0.03,89199.0,89188.0,0.42515018]
[1769304429470,0.03,89197.0,89189.0,0.00736136]
[1769304429671,0.03,89195.0,89189.0,0.00736136]
[1769304430718,0.03,89194.0,89189.0,0.43251154]
[1769304430894,0.03,89194.0,89189.0,0.42515018]
[1769304431679,0.03,89193.0,89189.0,0.42515018]
[1769304432214,0.03,89193.0,89190.0,0.00740018]
[1769304432414,0.03363683,89205.0,89190.0,0.00740018]
[1769304432595,0.01051379,89204.0,89188.0,0.00740018]
[1769304432795,0.03,89202.0,89188.0,0.00740018]
[1769304433017,0.03,89200.0,89188.0,0.00740018]
[1769304433223,0.03,89198.0,89188.0,0.00740018]
[1769304433566,0.03,89196.0,89188.0,0.21692505]
[1769304433774,0.03,89194.0,89188.0,0.43301972]
[1769304433966,0.03,89194.0,89188.0,0.42561954]
[1769304434184,0.03,89194.0,89190.0,0.42561954]
[1769304434388,0.03,89194.0,89191.0,0.00719662]
[1769304434541,0.03,89192.0,89191.0,0.00719662]
[1769304435822,0.03,89192.0,89191.0,0.43281616]
[1769304436018,0.03,89192.0,89191.0,0.42561954]
[1769304436218,0.03,89192.0,89187.0,0.0001497]
[1769304436657,0.03,89203.0,89187.0,0.20967457]
[1769304436859,0.03,89201.0,89188.0,0.00723806]
[1769304437058,0.01051371,89202.0,89188.0,0.00723806]
[1769304437059,0.03,89199.0,89188.0,0.00723806]
[1769304437268,0.03,89197.0,89188.0,0.00723806]
[1769304437483,0.03,89195.0,89188.0,0.00723806]
[1769304437684,0.03,89193.0,89189.0,0.42561954]
[1769304437913,0.03,89193.0,89190.0,0.00725603]
[1769304438569,0.03,89192.0,89190.0,0.00725603]
[1769304438994,0.03,89192.0,89187.0,0.00740573]
[1769304439190,0.03,89192.0,89187.0,0.0001497]
[1769304439656,0.03,89191.0,89189.0,0.42561954]
[1769304440884,0.04484696,89205.0,89189.0,0.42561954]
[1769304441105,0.01051391,89204.0,89190.0,0.00732198]
[1769304441303,0.01051391,89203.0,89190.0,0.00732198]
[1769304441509,0.01051391,89202.0,89190.0,0.00732198]
[1769304441688,0.01051391,89201.0,89190.0,0.00732198]
[1769304441887,0.01051391,89200.0,89190.0,0.00732198]
[1769304442090,0.01051391,89199.0,89190.0,0.00732198]
[1769304442289,0.01051391,89198.0,89190.0,0.00732198]
[1769304442472,0.01051391,89197.0,89190.0,0.00732198]
[1769304442685,0.01051391,89196.0,89190.0,0.00732198]
[1769304442922,0.01051391,89195.0,89190.0,0.00732198]
[1769304443083,0.03363683,89205.0,89190.0,0.00732198]
[1769304443284,0.03363683,89205.0,89190.0,0.21609467]
[1769304443486,0.03363683,89205.0,89192.0,0.42561954]
[1769304443685,0.03363683,89205.0,89192.0,0.42071606]
[1769304453038,0.03363683,89205.0,89189.0,0.22296223]
[1769304453202,0.03363683,89205.0,89193.0,0.22027423]
[1769304453380,0.03,89207.0,89195.0,0.22296223]
[1769304453581,0.06363683,89207.0,89195.0,0.20037253]
[1769304453826,0.06363683,89207.0,89195.0,0.19325201]
[1769304454030,0.03,89207.0,89195.0,0.19325201]
[1769304454225,0.00800942,89208.0,89195.0,0.19325201]
[1769304454226,0.03,89205.0,89195.0,0.19325201]
[1769304455068,0.03,89203.0,89195.0,0.19325201]
[1769304455225,0.03,89201.0,89195.0,0.19325201]
[1769304455433,0.03,89199.0,89197.0,0.22296223]
[1769304455671,0.04051448,89198.0,89197.0,0.40762611]
[1769304455845,0.03051448,89198.0,89197.0,0.40720124]
[1769304456055,0.03051448,89198.0,89197.0,0.37158981]
[1769304456257,0.03051448,89198.0,89197.0,0.37116493]
[1769304457128,0.03051448,89198.0,89197.0,0.33556551]
[1769304457268,0.03051448,89198.0,89197.0,0.22027423]
[1769304458056,0.03363683,89205.0,89197.0,0.22027423]
[1769304458057,0.03,89204.0,89197.0,0.22027423]
[1769304459894,0.03,89204.0,89192.0,0.44323646]
[1769304460127,0.03,89204.0,89193.0,0.22027423]
[1769304460332,0.03,89204.0,89193.0,0.44323646]
[1769304460531,0.03,89204.0,89194.0,0.22077017]
[1769304460908,0.03,89204.0,89194.0,0.22027423]
[1769304463325,0.03,89202.0,89187.0,0.0001497]
[1769304463525,0.21762461,89203.0,89187.0,0.0001497]
[1769304463526,0.31830977,89200.0,89187.0,0.0001497]
[1769304463859,0.03,89198.0,89187.0,0.0001497]
[1769304464057,0.03,89196.0,89187.0,0.0001497]
[1769304464925,0.03,89200.0,89187.0,0.0001497]
[1769304465171,0.03,89198.0,89187.0,0.0001497]
[1769304465407,0.03,89196.0,89187.0,0.0001497]
[1769304466392,0.03,89200.0,89187.0,0.0001497]
[1769304466717,0.03,89198.0,89187.0,0.0001497]
[1769304466942,0.03,89196.0,89187.0,0.0001497]
[1769304467295,0.03,89196.0,89187.0,0.22042393]
[1769304467888,0.03,89200.0,89187.0,0.22042393]
[1769304468117,0.03,89198.0,89187.0,0.22042393]
[1769304468326,0.03,89196.0,89187.0,0.22042393]
[1769304469334,0.03,89200.0,89187.0,0.22042393]
[1769304469547,0.03,89198.0,89187.0,0.22042393]
[1769304469753,0.00789752,89197.0,89187.0,0.22042393]
[1769304469968,0.04051106,89196.0,89187.0,0.22042393]
[1769304470194,0.03,89194.0,89187.0,0.22042393]
[1769304470424,0.03,89192.0,89187.0,0.22042393]
[1769304470638,0.03,89192.0,89188.0,0.22027423]
[1769304471449,0.03,89191.0,89188.0,0.44323646]
[1769304471874,0.03,89191.0,89189.0,0.22027423]
[1769304472506,0.03,89190.0,89189.0,0.22027423]
[1769304475389,0.00789752,89201.0,89189.0,0.22027423]
[1769304475604,0.03,89199.0,89189.0,0.22027423]
[1769304475780,0.03,89197.0,89189.0,0.22027423]
[1769304476107,0.03,89195.0,89189.0,0.22027423]
[1769304476315,0.03,89193.0,89189.0,0.22027423]
[1769304477372,0.03,89200.0,89189.0,0.22027423]
[1769304477544,0.03,89198.0,89189.0,0.22027423]
[1769304477765,0.03,89196.0,89189.0,0.22027423]
[1769304477966,0.03,89194.0,89189.0,0.22027423]
[1769304478166,0.03,89192.0,89189.0,0.22027423]
[1769304478954,0.03,89192.0,89187.0,0.22042393]
[1769304479174,0.03,89191.0,89187.0,0.22042393]
[1769304480181,0.03,89200.0,89187.0,0.22042393]
[1769304480478,0.03,89198.0,89187.0,0.22042393]
[1769304480735,0.03,89196.0,89187.0,0.22042393]
[1769304480927,0.03,89194.0,89187.0,0.22042393]
[1769304481099,0.03,89192.0,89187.0,0.22042393]
[1769304482109,0.03,89200.0,89187.0,0.22042393]
[1769304482290,0.03,89198.0,89187.0,0.22042393]
[1769304482492,0.03,89196.0,89187.0,0.22042393]
[1769304482705,0.03,89194.0,89187.0,0.22042393]
[1769304482896,0.00789752,89201.0,89187.0,0.22042393]
[1769304482897,0.03,89192.0,89187.0,0.22042393]
[1769304483515,0.00789752,89201.0,89187.0,0.22042393]
[1769304483730,0.01050975,89200.0,89187.0,0.22042393]
[1769304483931,0.04050975,89199.0,89187.0,0.22042393]
[1769304484137,0.03,89197.0,89187.0,0.22042393]
[1769304484347,0.03,89195.0,89187.0,0.22042393]
[1769304484508,0.03,89193.0,89187.0,0.22042393]
[1769304484718,0.03,89191.0,89187.0,0.22042393]
[1769304485826,0.03,89202.0,89187.0,0.22042393]
[1769304486025,0.03,89200.0,89187.0,0.22042393]
[1769304486336,0.03,89198.0,89187.0,0.22042393]
[1769304486504,0.03,89196.0,89187.0,0.22042393]
[1769304486706,0.03,89194.0,89187.0,0.22042393]
[1769304486909,0.03,89192.0,89187.0,0.22042393]
[1769304487890,0.03,89202.0,89187.0,0.22042393]
[1769304488173,0.03,89200.0,89187.0,0.22042393]
[1769304488412,0.03,89198.0,89187.0,0.22042393]
[1769304488585,0.03,89196.0,89187.0,0.22042393]
[1769304488746,0.03,89194.0,89187.0,0.22042393]
[1769304488928,0.03,89192.0,89187.0,0.22042393]
[1769304489756,0.0673715,89208.0,89177.0,0.04484]
[1769304489757,0.03,89190.0,89179.0,0.22401709]
[1769304491156,0.03,89189.0,89179.0,0.22401709]
[1769304492132,0.03,89188.0,89178.0,0.0001497]
[1769304492501,0.03,89188.0,89178.0,0.1723897]
[1769304493211,0.03,89187.0,89178.0,0.1723897]
[1769304494245,0.03,89186.0,89178.0,0.1723897]
[1769304495267,0.03,89185.0,89178.0,0.1723897]
[1769304496260,0.03,89190.0,89178.0,0.1723897]
[1769304496589,0.03,89188.0,89178.0,0.1723897]
[1769304497358,0.03,89190.0,89178.0,0.1723897]
[1769304497538,0.03,89188.0,89178.0,0.1723897]
[1769304497879,0.21568497,89190.0,89178.0,0.1723897]
[1769304497880,0.03,89186.0,89178.0,0.1723897]
[1769304498856,0.03,89189.0,89178.0,0.1723897]
[1769304499112,0.03,89187.0,89178.0,0.1723897]